fUST/lending_fUST_20240717
["ID","MTS","AMOUNT","RATE_DAILY","PERIOD"]
[332410330,1721166357023,3000.0,0.00015199,2]
[332410331,1721166382619,567.49964681,0.00014999,2]
[332410333,1721166417117,182.77484663,0.00014999,2]
[332410334,1721166419155,157.25454264,0.00014999,2]
[332410335,1721166452146,598.40144196,0.00014999,2]
[332410337,1721166510814,471.57069,0.00015199,2]
[332410338,1721166537174,-432.93068145,0.00016153,2]
[332410339,1721166537215,-432.93068145,0.00016153,2]
[332410340,1721166537380,-201.38230281,0.00016153,2]
[332410341,1721166547530,155.29893855,0.00014999,2]
[332410342,1721166562004,-454.27555477,0.00016153,2]
[332410343,1721166562056,-454.27555477,0.00016153,2]
[332410344,1721166564284,208.24444809,0.00014999,2]
[332410345,1721166567139,154.69833824,0.00014999,2]
[332410346,1721166576389,155.51415868,0.00014999,2]
[332410347,1721166580761,187.95535246,0.00014999,2]
[332410348,1721166583035,202.79407446,0.00014999,2]
[332410349,1721166586808,410.73111155,0.00014999,2]
[332410350,1721166587127,-204.46279486,0.00016053,2]
[332410351,1721166587155,-158.85935103,0.00016153,2]
[332410352,1721166587392,-109.12443107,0.00016153,2]
[332410353,1721166587425,-190.87556893,0.00016153,2]
[332410354,1721166587453,-185.29501025,0.00016153,2]
[332410355,1721166588817,-114.70498975,0.00016153,2]
[332410356,1721166588847,-357.74158721,0.00016153,2]
[332410357,1721166597551,375.00206261,0.00014999,2]
[332410358,1721166603812,403.87685403,0.00014999,2]
[332410359,1721166605496,282.43414984,0.00014999,2]
[332410360,1721166609332,319.12146127,0.00014999,2]
[332410361,1721166612016,154.72922386,0.00015199,2]
[332410362,1721166612168,-498.86785162,0.00016153,2]
[332410363,1721166612224,-444.10971598,0.00016153,2]
[332410364,1721166619031,247.57733122,0.00014999,2]
[332410365,1721166622947,310.8143884,0.00015,2]
[332410366,1721166626155,559.46901358,0.00014999,2]
[332410367,1721166626529,547.12385373,0.00014999,2]
[332410368,1721166627429,1698.50064883,0.00014999,2]
[332410430,1721166633955,-833.93497143,0.00016153,2]
[332410432,1721166633965,-2134.65412624,0.00016154,2]
[332410434,1721166633975,-2134.65412624,0.00016154,2]
[332410436,1721166633984,-2134.65412624,0.00016154,2]
[332410438,1721166633994,-300.0,0.00016243,2]
[332410440,1721166634004,-300.0,0.00016243,2]
[332410442,1721166634014,-500.0,0.00016244,2]
[332410444,1721166634024,-530.48691945,0.00016244,2]
[332410446,1721166634033,-500.0,0.00016244,2]
[332410448,1721166634043,-468.1383885,0.00016244,2]
[332410450,1721166634053,-500.0,0.00016244,2]
[332410452,1721166634062,-500.0,0.00016244,2]
[332410454,1721166634072,-248.98033282,0.00016244,2]
[332410456,1721166634081,-419.3748234,0.00016244,2]
[332410458,1721166634091,-1102.982629,0.00016244,2]
[332410460,1721166634100,-3193.86112996,0.00016244,2]
[332410462,1721166634110,-112367.44972541,0.00016245,2]
[332410464,1721166634122,-703.7636435,0.00016245,2]
[332410675,1721166637962,-51428.30904909,0.00016245,2]
[332410676,1721166637972,-57284.82915488,0.00016254,2]
[332410678,1721166637981,-182.58593636,0.00016254,2]
[332410680,1721166637991,-368.09999442,0.00016254,2]
[332410682,1721166638000,-241.00900898,0.00016254,2]
[332410684,1721166638009,-500.0,0.00016254,2]
[332410685,1721166638018,-500.0,0.00016254,2]
[332410686,1721166638027,-500.0,0.00016254,2]
[332410687,1721166638037,-500.0,0.00016254,2]
[332410688,1721166638046,-500.0,0.00016254,2]
[332410689,1721166638055,-222.11283342,0.00016254,2]
[332410690,1721166638064,-500.0,0.00016254,2]
[332410691,1721166638074,-500.0,0.00016254,2]
[332410692,1721166638083,-500.0,0.00016254,2]
[332410694,1721166638093,-500.0,0.00016254,2]
[332410695,1721166638101,-500.0,0.00016254,2]
[332410696,1721166638110,-313.88675788,0.00016254,2]
[332410697,1721166638119,-500.0,0.00016254,2]
[332410698,1721166638128,-500.0,0.00016254,2]
[332410699,1721166638137,-500.0,0.00016254,2]
[332410700,1721166638146,-500.0,0.00016254,2]
[332410701,1721166638155,-500.0,0.00016254,2]
[332410702,1721166638164,-378.37162264,0.00016254,2]
[332410703,1721166638173,-500.0,0.00016254,2]
[332410704,1721166638182,-500.0,0.00016254,2]
[332410705,1721166638196,-500.0,0.00016254,2]
[332410706,1721166638205,-500.0,0.00016254,2]
[332410707,1721166638214,-500.0,0.00016254,2]
[332410708,1721166638223,-500.0,0.00016254,2]
[332410709,1721166638232,-279.94156734,0.00016254,2]
[332410710,1721166638243,-283.14915866,0.00016254,2]
[332410711,1721166638252,-500.0,0.00016254,2]
[332410712,1721166638262,-500.0,0.00016254,2]
[332410713,1721166638272,-246.72974518,0.00016254,2]
[332410714,1721166638283,-194.36274403,0.00016254,2]
[332410715,1721166638292,-272.55902069,0.00016254,2]
[332410716,1721166638302,-300.0,0.00016254,2]
[332410717,1721166638311,-300.0,0.00016254,2]
[332410718,1721166638320,-300.0,0.00016254,2]
[332410719,1721166638329,-157.75714047,0.00016254,2]
[332410720,1721166638338,-300.0,0.00016254,2]
[332410721,1721166638347,-300.0,0.00016254,2]
[332410722,1721166638358,-34969.80169059,0.00016255,2]
[332410723,1721166638367,-42279.12347767,0.00016255,2]
[332410724,1721166638376,-17268.73422592,0.00016255,2]
[332410725,1721166638385,-21266.34724239,0.00016255,2]
[332410726,1721166638394,-383.94934095,0.00016255,2]
[332410727,1721166638403,-309.18304489,0.00016255,2]
[332410728,1721166638412,-195.97964944,0.00016255,2]
[332410729,1721166638422,-151.0,0.00016255,2]
[332410730,1721166638431,-151.0,0.00016255,2]
[332410731,1721166638440,-309.22217732,0.00016255,2]
[332410732,1721166638449,-11076.92432545,0.00016255,2]
[332410733,1721166638459,-151.0,0.00016438,2]
[332410734,1721166638468,-151.0,0.00016438,2]
[332410735,1721166638477,-151.0,0.00016438,2]
[332410736,1721166638486,-151.0,0.00016438,2]
[332410737,1721166638495,-151.0,0.00016438,2]
[332410738,1721166638506,-151.0,0.00016438,2]
[332410739,1721166638515,-156.730935,0.00016438,2]
[332410740,1721166638524,-230.339713,0.00016438,2]
[332410741,1721166638533,-156.730935,0.00016438,2]
[332410742,1721166638542,-151.0,0.00016438,2]
[332410743,1721166638551,-151.0,0.00016438,2]
[332410744,1721166638561,-151.0,0.00016438,2]
[332410745,1721166638570,-153.234003,0.00016438,2]
[332410746,1721166638579,-151.0,0.00016438,2]
[332410747,1721166638588,-151.0,0.00016438,2]
[332410748,1721166638597,-151.0,0.00016438,2]
[332410749,1721166638606,-151.0,0.00016438,2]
[332410750,1721166638616,-154.815219,0.00016438,2]
[332410751,1721166638625,-216.386164,0.00016438,2]
[332410752,1721166638634,-216.386164,0.00016438,2]
[332410753,1721166638643,-151.0,0.00016438,2]
[332410754,1721166638652,-154.411803,0.00016438,2]
[332410755,1721166638661,-151.0,0.00016438,2]
[332410756,1721166638670,-177.94305,0.00016438,2]
[332410757,1721166638679,-1326.111529,0.00016438,2]
[332410758,1721166638688,-177.94305,0.00016438,2]
[332410759,1721166638697,-1326.111529,0.00016438,2]
[332410760,1721166638706,-151.0,0.00016438,2]
[332410761,1721166638715,-151.0,0.00016438,2]
[332410762,1721166638725,-151.0,0.00016438,2]
[332410763,1721166638734,-151.0,0.00016438,2]
[332410764,1721166638743,-151.0,0.00017055,2]
[332410765,1721166638753,-151.0,0.00017055,2]
[332410766,1721166638762,-151.0,0.00017065,2]
[332410767,1721166638771,-177.52956875,0.00017159,2]
[332410768,1721166638780,-420.0,0.00017755,2]
[332410769,1721166638789,-420.0,0.00017867,2]
[332410770,1721166638798,-151.0,0.0001799,2]
[332410771,1721166638807,-151.0,0.0001799,2]
[332410772,1721166638816,-151.0,0.0001799,2]
[332410773,1721166638826,-151.0,0.0001799,2]
[332410774,1721166638835,-151.0,0.0001799,2]
[332410775,1721166638844,-156.730935,0.0001799,2]
[332410776,1721166638853,-156.730935,0.0001799,2]
[332410777,1721166638862,-151.0,0.0001799,2]
[332410778,1721166638871,-151.0,0.0001799,2]
[332410779,1721166638880,-151.0,0.0001799,2]
[332410780,1721166638889,-109666.348278,0.0001799,2]
[332410781,1721166638898,-151.0,0.0001799,2]
[332410782,1721166638907,-151.0,0.0001799,2]
[332410783,1721166638916,-176.122982,0.0001799,2]
[332410784,1721166638925,-166.391057,0.0001799,2]
[332410785,1721166638935,-216.386164,0.0001799,2]
[332410786,1721166638945,-216.386164,0.0001799,2]
[332410787,1721166638956,-151.0,0.0001799,2]
[332410788,1721166638966,-151.0,0.0001799,2]
[332410789,1721166638976,-177.94305,0.0001799,2]
[332410790,1721166638985,-1326.111529,0.0001799,2]
[332410791,1721166638994,-177.94305,0.0001799,2]
[332410792,1721166639004,-1326.111529,0.0001799,2]
[332410793,1721166639014,-151.0,0.0001799,2]
[332410794,1721166639022,-151.0,0.0001799,2]
[332410795,1721166639032,-151.0,0.0001799,2]
[332410796,1721166639042,-151.0,0.0001799,2]
[332410797,1721166639051,-151.0,0.0001799,2]
[332410798,1721166639060,-151.0,0.0001799,2]
[332410799,1721166639158,-100000.0,0.00018,2]
[332410800,1721166639168,-151.0,0.00018,2]
[332410801,1721166639177,-151.0,0.00018,2]
[332410802,1721166639186,-151.0,0.00018,2]
[332410803,1721166639199,-151.0,0.00018,2]
[332410804,1721166639207,-151.0,0.00018,2]
[332410805,1721166639217,-156.730935,0.00018,2]
[332410806,1721166639226,-156.730935,0.00018,2]
[332410807,1721166639235,-151.0,0.00018,2]
[332410808,1721166639244,-151.0,0.00018,2]
[332410809,1721166639254,-151.0,0.00018,2]
[332410810,1721166639264,-216.386164,0.00018,2]
[332410811,1721166639276,-216.386164,0.00018,2]
[332410812,1721166639285,-151.0,0.00018,2]
[332410813,1721166639294,-151.0,0.00018,2]
[332410814,1721166639304,-177.94305,0.00018,2]
[332410815,1721166639314,-1326.111529,0.00018,2]
[332410816,1721166639323,-177.94305,0.00018,2]
[332410817,1721166639334,-1326.111529,0.00018,2]
[332410818,1721166639344,-151.0,0.00018,2]
[332410819,1721166639355,-151.0,0.00018,2]
[332410820,1721166639365,-151.0,0.00018,2]
[332410821,1721166639374,-151.0,0.00018,2]
[332410822,1721166639383,-151.0,0.00018,2]
[332410823,1721166639391,-151.0,0.00018,2]
[332410824,1721166639401,-154.83424936,0.00018423,2]
[332410825,1721166639410,-14998.78790937,0.00018423,2]
[332410826,1721166639419,-309.36863139,0.00018423,2]
[332410827,1721166639428,-191.36840556,0.00018798,2]
[332410828,1721166639437,-733.17184861,0.000189,2]
[332410829,1721166639446,-197.54512246,0.00019039,2]
[332410830,1721166639457,-151.0,0.00019178,2]
[332410831,1721166639466,-151.0,0.00019178,2]
[332410832,1721166639474,-151.0,0.00019178,2]
[332410833,1721166639484,-151.0,0.00019178,2]
[332410834,1721166639494,-151.0,0.00019178,2]
[332410835,1721166639503,-151.0,0.00019178,2]
[332410836,1721166639512,-151.0,0.00019178,2]
[332410837,1721166639521,-170.682304,0.00019178,2]
[332410838,1721166639530,-587.0,0.00019407,2]
[332410839,1721166639539,-154.7605691,0.00019579,2]
[332410840,1721166639549,-6753.24972208,0.00019579,2]
[332410841,1721166639559,-155.28367271,0.00019579,2]
[332410842,1721166639568,-154.96149003,0.00019579,2]
[332410843,1721166639577,-287.67977048,0.00019579,2]
[332410844,1721166639586,-587.0,0.00019654,2]
[332410845,1721166639596,-151.0,0.0001968,2]
[332410846,1721166639605,-1326.111529,0.0001968,2]
[332410847,1721166639614,-1326.111529,0.0001968,2]
[332410848,1721166639624,-151.0,0.0001968,2]
[332410849,1721166639633,-151.0,0.0001968,2]
[332410850,1721166639643,-151.0,0.0001968,2]
[332410851,1721166639652,-151.0,0.0001968,2]
[332410852,1721166639662,-151.0,0.0001968,2]
[332410853,1721166639671,-269.783386,0.0001968,2]
[332410854,1721166639680,-6867.25153131,0.0001968,5]
[332410855,1721166639690,-54833.1741392,0.0001968,2]
[332410856,1721166639699,-200.11352358,0.00019703,2]
[332410857,1721166639709,-349.19490315,0.0002,2]
[332410859,1721166639719,-350409.83986168,0.0002,2]
[332410861,1721166639728,-154.90127976,0.0002,2]
[332410862,1721166639737,-154.69833824,0.0002,2]
[332410864,1721166639747,-158.77040209,0.0002,2]
[332410866,1721166639757,-20737.44133409,0.0002,2]
[332410868,1721166639767,-154.74310492,0.0002,2]
[332410870,1721166639776,-293.52950214,0.0002,2]
[332410871,1721166639785,-557.55490721,0.0002,2]
[332410873,1721166639794,-252.60029946,0.0002,2]
[332410875,1721166639803,-154.70202418,0.0002,2]
[332410877,1721166639812,-151.21272606,0.0002,2]
[332410878,1721166639822,-151.0,0.0002,2]
[332410880,1721166639831,-151.0,0.0002,2]
[332410881,1721166639840,-171.22517209,0.0002,2]
[332410882,1721166639850,-150.112233,0.0002,5]
[332410883,1721166639859,-150.112233,0.0002,2]
[332410885,1721166639868,-150.112233,0.0002,2]
[332410887,1721166639877,-150.112233,0.0002,4]
[332410889,1721166639887,-150.112233,0.0002,5]
[332410891,1721166639896,-150.112233,0.0002,3]
[332410892,1721166639905,-150.112233,0.0002,4]
[332410894,1721166639914,-150.112233,0.0002,5]
[332410895,1721166639923,-150.112233,0.0002,5]
[332410897,1721166639932,-150.112233,0.0002,4]
[332410898,1721166639942,-151.0,0.0002,2]
[332410900,1721166639951,-187.407999,0.0002,2]
[332410902,1721166639961,-151.0,0.0002,2]
[332410903,1721166639970,-151.0,0.0002,2]
[332410904,1721166639979,-151.0,0.0002,2]
[332410906,1721166639989,-156.730935,0.0002,2]
[332410908,1721166639998,-151.0,0.0002,2]
[332410910,1721166640007,-156.730935,0.0002,2]
[332410911,1721166640016,-151.0,0.0002,2]
[332410913,1721166640026,-151.0,0.0002,2]
[332410915,1721166640035,-151.0,0.0002,2]
[332410917,1721166640044,-216.386164,0.0002,2]
[332410919,1721166640054,-216.386164,0.0002,2]
[332410920,1721166640064,-151.0,0.0002,2]
[332410921,1721166640073,-151.0,0.0002,2]
[332410922,1721166640083,-177.94305,0.0002,2]
[332410923,1721166640092,-1326.111529,0.0002,2]
[332410924,1721166640101,-177.94305,0.0002,2]
[332410925,1721166640111,-1326.111529,0.0002,2]
[332410926,1721166640120,-9548.04552618,0.0002,2]
[332410927,1721166640129,-151.0,0.0002,2]
[332410928,1721166640139,-151.0,0.0002,2]
[332410929,1721166640148,-151.0,0.0002,2]
[332410930,1721166640157,-151.0,0.0002,2]
[332410931,1721166640167,-151.0,0.0002,2]
[332410932,1721166640176,-151.0,0.00020548,2]
[332410933,1721166640186,-151.0,0.00020548,2]
[332410934,1721166640199,-151.0,0.00020548,2]
[332410935,1721166640208,-151.0,0.00020548,2]
[332410936,1721166640218,-151.0,0.00020548,2]
[332410937,1721166640226,-151.0,0.00020548,2]
[332410938,1721166640236,-151.0,0.00020548,2]
[332410940,1721166640245,-151.0,0.00020548,2]
[332410942,1721166640255,-151.0,0.00020548,2]
[332410944,1721166640267,-151.0,0.00020548,2]
[332410946,1721166640276,-607.4,0.00020705,2]
[332410947,1721166640285,-607.4,0.00020865,2]
[332410948,1721166640294,-156.121851,0.00020918,2]
[332410949,1721166640303,-306.6209046,0.00020994,2]
[332410950,1721166640312,-607.4,0.00021025,2]
[332410951,1721166640321,-153.0,0.0002103,2]
[332410952,1721166640330,-153.0,0.0002103,2]
[332410953,1721166640339,-299.58099341,0.00021095,2]
[332410954,1721166640351,-151.0,0.00021095,2]
[332410955,1721166640360,-151.0,0.00021095,2]
[332410956,1721166640369,-151.0,0.00021095,2]
[332410957,1721166640378,-151.0,0.00021095,2]
[332410958,1721166640387,-216.386164,0.00021095,2]
[332410959,1721166640396,-216.386164,0.00021095,2]
[332410960,1721166640405,-151.0,0.00021095,2]
[332410961,1721166640415,-177.94305,0.00021095,2]
[332410962,1721166640423,-1326.111529,0.00021095,2]
[332410963,1721166640433,-177.94305,0.00021095,2]
[332410964,1721166640442,-1326.111529,0.00021095,2]
[332410965,1721166640451,-151.0,0.00021095,2]
[332410966,1721166640460,-151.0,0.00021095,2]
[332410967,1721166640469,-151.0,0.00021095,2]
[332410968,1721166640478,-151.0,0.00021095,2]
[332410969,1721166640487,-151.0,0.00021095,2]
[332410970,1721166640496,-538.716548,0.00021096,2]
[332410971,1721166640509,-607.4,0.00021185,2]
[332410972,1721166640518,-153.0,0.00021252,2]
[332410973,1721166640527,-607.4,0.00021345,2]
[332410974,1721166640536,-151.0,0.00021355,2]
[332410975,1721166640545,-153.893132,0.00021355,2]
[332410976,1721166640554,-156.730935,0.00021355,2]
[332410977,1721166640565,-156.730935,0.00021355,2]
[332410978,1721166640573,-4867.79761474,0.00021374,2]
[332410979,1721166640582,-607.4,0.00021505,2]
[332410980,1721166640591,-151.0,0.00021509,2]
[332410981,1721166640600,-306.0,0.0002156,2]
[332410982,1721166640609,-303.7391479,0.00021581,2]
[332410983,1721166640619,-823.0,0.0002162,2]
[332410984,1721166640628,-345.2896725,0.00021636,2]
[332410985,1721166640637,-607.4,0.00021665,2]
[332410986,1721166640646,-151.0,0.00021665,2]
[332410987,1721166640655,-151.0,0.0002178,2]
[332410988,1721166640664,-225.239171,0.0002178,2]
[332410989,1721166640673,-151.0,0.0002178,2]
[332410990,1721166640682,-151.0,0.0002178,2]
[332410991,1721166640692,-30951.39365914,0.000218,3]
[332410992,1721166640701,-19142.009583,0.000218,3]
[332410993,1721166640710,-2837.65976581,0.000218,7]
[332410994,1721166640720,-428.33382,0.000218,2]
[332410995,1721166640729,-226.02684754,0.000218,2]
[332410996,1721166640739,-764.86209876,0.000218,2]
[332410997,1721166640749,-150.112233,0.000218,2]
[332410998,1721166640758,-150.112233,0.000218,3]
[332410999,1721166640768,-150.112233,0.000218,4]
[332411000,1721166640777,-150.112233,0.000218,2]
[332411001,1721166640786,-150.112233,0.000218,4]
[332411002,1721166640795,-3000.0,0.000218,2]
[332411003,1721166640804,-151.0,0.000218,2]
[332411004,1721166640813,-151.0,0.000218,2]
[332411005,1721166640822,-230.547576,0.000218,2]
[332411006,1721166640831,-1000.0,0.000218,2]
[332411007,1721166640920,-1000.0,0.000218,2]
[332411008,1721166640929,-1000.0,0.000218,2]
[332411009,1721166640938,-1000.0,0.000218,2]
[332411010,1721166640948,-1000.0,0.000218,2]
[332411011,1721166640957,-1000.0,0.000218,2]
[332411012,1721166640966,-1000.0,0.000218,2]
[332411013,1721166640975,-1000.0,0.000218,2]
[332411014,1721166640984,-1000.0,0.000218,2]
[332411015,1721166640993,-1000.0,0.000218,2]
[332411016,1721166641002,-1000.0,0.000218,2]
[332411017,1721166641011,-1000.0,0.000218,2]
[332411018,1721166641020,-1000.0,0.000218,2]
[332411019,1721166641029,-1000.0,0.000218,2]
[332411020,1721166641039,-1000.0,0.000218,2]
[332411021,1721166641047,-1000.0,0.000218,2]
[332411022,1721166641057,-1000.0,0.000218,2]
[332411023,1721166641066,-1000.0,0.000218,2]
[332411024,1721166641075,-1000.0,0.000218,2]
[332411025,1721166641084,-1000.0,0.000218,2]
[332411026,1721166641093,-1000.0,0.000218,2]
[332411027,1721166641102,-1000.0,0.000218,2]
[332411028,1721166641111,-1000.0,0.000218,2]
[332411029,1721166641119,-1000.0,0.000218,2]
[332411030,1721166641128,-1000.0,0.000218,2]
[332411031,1721166641137,-1000.0,0.000218,2]
[332411032,1721166641147,-1000.0,0.000218,2]
[332411033,1721166641155,-1000.0,0.000218,2]
[332411034,1721166641165,-1000.0,0.000218,2]
[332411035,1721166641173,-1000.0,0.000218,2]
[332411036,1721166641182,-980.333778,0.000218,2]
[332411037,1721166641193,-156.730935,0.000218,2]
[332411038,1721166641203,-156.730935,0.000218,2]
[332411039,1721166641212,-156.730935,0.000218,2]
[332411040,1721166641221,-156.730935,0.000218,2]
[332411041,1721166641230,-151.0,0.000218,2]
[332411042,1721166641240,-151.0,0.000218,2]
[332411043,1721166641249,-151.0,0.000218,2]
[332411044,1721166641259,-151.0,0.000218,2]
[332411045,1721166641269,-151.0,0.000218,2]
[332411046,1721166641278,-151.0,0.000218,2]
[332411047,1721166641287,-151.0,0.000218,2]
[332411048,1721166641296,-216.386164,0.000218,2]
[332411049,1721166641305,-216.386164,0.000218,2]
[332411050,1721166641314,-216.386164,0.000218,2]
[332411051,1721166641323,-216.386164,0.000218,2]
[332411052,1721166641332,-151.0,0.000218,2]
[332411053,1721166641341,-169.284382,0.000218,2]
[332411054,1721166641351,-177.94305,0.000218,2]
[332411055,1721166641361,-177.94305,0.000218,2]
[332411056,1721166641371,-1326.111529,0.000218,2]
[332411057,1721166641382,-1326.111529,0.000218,2]
[332411058,1721166641392,-177.94305,0.000218,2]
[332411059,1721166641401,-177.94305,0.000218,2]
[332411060,1721166641410,-1326.111529,0.000218,2]
[332411061,1721166641420,-1326.111529,0.000218,2]
[332411062,1721166641432,-151.0,0.000218,2]
[332411063,1721166641442,-151.0,0.000218,2]
[332411064,1721166641454,-151.0,0.000218,2]
[332411065,1721166641462,-151.0,0.000218,2]
[332411066,1721166641472,-151.0,0.000218,2]
[332411067,1721166641481,-151.0,0.000218,2]
[332411068,1721166641490,-151.0,0.000218,2]
[332411069,1721166641499,-151.0,0.000218,2]
[332411070,1721166641510,-151.0,0.000218,2]
[332411071,1721166641519,-151.0,0.000218,2]
[332411072,1721166641529,-3000.0,0.0002181,2]
[332411073,1721166641539,-3000.0,0.0002182,2]
[332411074,1721166641548,-607.4,0.00021825,2]
[332411075,1721166641557,-151.0,0.00021825,2]
[332411076,1721166641567,-3000.0,0.0002183,2]
[332411077,1721166641575,-158.130355,0.00021838,2]
[332411078,1721166641585,-3000.0,0.0002184,2]
[332411079,1721166641594,-153003.25196457,0.0002185,2]
[332411080,1721166641603,-3000.0,0.0002185,2]
[332411081,1721166641612,-151.0,0.0002185,2]
[332411082,1721166641621,-156.730935,0.0002185,2]
[332411083,1721166641630,-156.730935,0.0002185,2]
[332411084,1721166641639,-151.0,0.0002185,2]
[332411085,1721166641648,-151.0,0.0002185,2]
[332411086,1721166641658,-216.386164,0.0002185,2]
[332411087,1721166641668,-216.386164,0.0002185,2]
[332411088,1721166641677,-177.94305,0.0002185,2]
[332411089,1721166641686,-1326.111529,0.0002185,2]
[332411090,1721166641695,-177.94305,0.0002185,2]
[332411091,1721166641705,-1326.111529,0.0002185,2]
[332411092,1721166641714,-151.0,0.0002185,2]
[332411093,1721166641723,-206.084806,0.0002185,2]
[332411094,1721166641732,-151.0,0.0002185,2]
[332411095,1721166641741,-248.652512,0.0002185,2]
[332411096,1721166641751,-151.0,0.0002185,2]
[332411097,1721166641762,-3000.0,0.0002186,2]
[332411098,1721166641771,-3000.0,0.0002187,2]
[332411099,1721166641779,-3000.0,0.0002188,2]
[332411100,1721166641789,-3000.0,0.0002189,2]
[332411101,1721166641798,-160.0,0.00021899,4]
[332411102,1721166641807,-150.112233,0.000219,3]
[332411103,1721166641816,-150.112233,0.000219,5]
[332411104,1721166641825,-150.112233,0.000219,4]
[332411105,1721166641835,-150.112233,0.000219,4]
[332411106,1721166641844,-150.112233,0.000219,3]
[332411107,1721166641854,-3000.0,0.000219,2]
[332411108,1721166641863,-3000.0,0.0002191,2]
[332411109,1721166641872,-1066.9082796,0.00021917,2]
[332411110,1721166641881,-500.0,0.00021917,2]
[332411111,1721166641890,-500.0,0.00021917,2]
[332411112,1721166641900,-564.52685045,0.00021917,2]
[332411113,1721166641909,-500.0,0.00021917,2]
[332411114,1721166641918,-500.0,0.00021917,2]
[332411115,1721166641927,-500.0,0.00021917,2]
[332411116,1721166641936,-500.0,0.00021917,2]
[332411117,1721166641945,-500.0,0.00021917,2]
[332411118,1721166641954,-500.0,0.00021917,2]
[332411119,1721166641965,-500.0,0.00021917,2]
[332411120,1721166641974,-500.0,0.00021917,2]
[332411121,1721166641983,-500.0,0.00021917,2]
[332411122,1721166641993,-500.0,0.00021917,2]
[332411123,1721166642003,-500.0,0.00021917,2]
[332411124,1721166642012,-500.0,0.00021917,2]
[332411125,1721166642021,-500.0,0.00021917,2]
[332411126,1721166642030,-500.0,0.00021917,2]
[332411127,1721166642039,-500.0,0.00021917,2]
[332411128,1721166642048,-500.0,0.00021917,2]
[332411129,1721166642057,-500.0,0.00021917,2]
[332411130,1721166642066,-519.83057621,0.00021917,2]
[332411131,1721166642075,-2096.4,0.00021917,2]
[332411132,1721166642085,-500.0,0.00021917,2]
[332411133,1721166642094,-500.0,0.00021917,2]
[332411134,1721166642103,-500.0,0.00021917,2]
[332411135,1721166642112,-516.07735879,0.00021917,2]
[332411136,1721166642121,-292.99920951,0.00021917,2]
[332411137,1721166642130,-500.0,0.00021917,2]
[332411138,1721166642139,-500.0,0.00021917,2]
[332411139,1721166642148,-500.0,0.00021917,2]
[332411140,1721166642157,-500.0,0.00021917,2]
[332411141,1721166642166,-501.15981291,0.00021917,2]
[332411142,1721166642176,-500.0,0.00021917,2]
[332411143,1721166642185,-500.0,0.00021917,2]
[332411144,1721166642196,-500.0,0.00021917,2]
[332411145,1721166642205,-500.0,0.00021917,2]
[332411146,1721166642214,-500.0,0.00021917,2]
[332411147,1721166642226,-500.0,0.00021917,2]
[332411148,1721166642235,-500.0,0.00021917,2]
[332411149,1721166642244,-500.0,0.00021917,2]
[332411150,1721166642254,-500.0,0.00021917,2]
[332411151,1721166642263,-500.0,0.00021917,2]
[332411152,1721166642273,-500.0,0.00021917,2]
[332411153,1721166642283,-500.0,0.00021917,2]